Cogmind - Beta 11.1 @@@ ROGUE MODE // 2022.04.29 @ 17:19:50 Player: Runia Result: Destroyed by ME-RLN with Improved Arc Thrower Performance ------------- Evolutions (1) 500 Regions Visited (6) 1200 Robots Destroyed (60) 300 Value Destroyed (959) 959 Prototype IDs (32) 640 Alien Tech Used (0) 0 Bonus (311) 311 TOTAL SCORE: 3910 Bonus ------- High Alert Combat Kills 24 Aligned with FarCom 300 Friendly Fire -13 Cogmind --------- Core Integrity 0/400 Matter 161/300 Energy 99/100 System Corruption 15% Temperature Cool (0) Movement Core (700) Ox13 Location -8/Mines Parts ------- > --- POWER (1) -------- (None) > --- PROPULSION (3) --- (None) > --- UTILITY (3) ------ High-capacity Storage Unit Structural Scanner > --- WEAPON (2) ------- Light Assault Rifle > --- INVENTORY (20) --- Authchip [Device] Authchip [Weapon] Authchip [Weapon] Mini Grenade Launcher Mini Grenade Launcher Heavy Hammer Peak State ------------ > --- POWER ------------ Heavy Ion Engine > --- PROPULSION ------- Light Treads Improved Treads Wheel > --- UTILITY ---------- Large Storage Unit Structural Scanner Improved Utility Shielding > --- WEAPON ----------- Heavy Assault Rifle Improved Assault Rifle > --- INVENTORY -------- Light Ion Engine Light Nuclear Core Light Treads Wheel High-capacity Matter Pod Improved Utility Shielding Light Assault Rifle Light Assault Rifle Light Assault Rifle Light Assault Rifle Light Assault Rifle High-powered Shotgun High-powered Shotgun Grenade Launcher Plasma Cutter [Rating: 19] Favorites ----------- Power Ion Engine Engine Ion Engine Propulsion Light Treads Treads Light Treads Leg Aluminum Leg Wheel Wheel Utility Structural Scanner Device Structural Scanner Storage Large Storage Unit Protection Improved Utility Shielding Weapon Autogun Energy Gun Small Laser Ballistic Gun Autogun Launcher Mini Grenade Launcher Special Weapon Plasma Cutter Impact Weapon Heavy Hammer Build | -11 -10 -10 -9 -9 -9 -8 ------- Run | Scr Mat Min Mat Min Exi Min Slots Evolved 2 | . . . 2 . . . Power . | . . . . . . . Propulsion 1 | . . . 1 . . . Utility 1 | . . . 1 . . . Weapon . | . . . . . . . Parts Attached 54 | 2 4 5 30 . 3 10 Power 7 | . . . 6 . . 1 Engine 7 | . . . 6 . . 1 Core . | . . . . . . . Reactor . | . . . . . . . Propulsion 10 | 2 1 . 5 . 1 1 Treads 9 | 2 1 . 4 . 1 1 Leg . | . . . . . . . Wheel 1 | . . . 1 . . . Hover . | . . . . . . . Flight . | . . . . . . . Utility 7 | . 3 . 2 . 1 1 Device 2 | . 2 . . . . . Storage 2 | . 1 . . . 1 . Processor . | . . . . . . . Hackware . | . . . . . . . Protection 3 | . . . 2 . . 1 Artifact . | . . . . . . . Weapon 30 | . . 5 17 . 1 7 Energy Gun 3 | . . 3 . . . . Energy Cannon . | . . . . . . . Ballistic Gun 18 | . . . 13 . . 5 Ballistic Cannon . | . . . . . . . Launcher 5 | . . 2 1 . 1 1 Special Weapon 1 | . . . . . . 1 Impact Weapon 3 | . . . 3 . . . Slashing Weapon . | . . . . . . . Piercing Weapon . | . . . . . . . Special Melee Weapon . | . . . . . . . Unidentified Prototypes 2 | . . . 2 . . . Parts Lost 17 | . . . 3 . 2 12 Power 3 | . . . 1 . 1 1 Propulsion 6 | . . . 1 . 1 4 Utility 2 | . . . . . . 2 Weapon 6 | . . . 1 . . 5 Highest Loss Streak 7 | . . . 1 . 2 7 To Critical Strikes . | . . . . . . . Average Slot Usage (%) 97 | . 95 100 99 100 99 70 Engine 11 | . 14 14 11 11 10 8 Treads 28 | . 28 28 27 33 33 16 Wheel 1 | . . . 4 . . . Device 11 | . 9 14 11 11 11 11 Storage 12 | . 14 14 11 11 11 11 Protection 6 | . . . 10 11 11 4 Energy Gun 5 | . 14 13 . . . . Ballistic Gun 18 | . 14 14 21 22 21 17 Naked Turns . | . . . . . . . Heaviest Build 57 | 13 29 31 36 35 55 57 Greatest Support 63 | 40 40 40 63 63 63 60 Greatest Overweight (x) 3 | . . . 3 . 1 . Average Overweight (x) . | . . . 1 . . . Largest Inventory Capacity 20 | 8 15 15 15 15 20 20 Average Capacity 15 | 8 14 15 15 15 18 20 Most Carried 15 | 6 12 14 15 15 15 13 Average Carried 12 | 4 6 12 14 15 14 9 Final Capacity 20 | 8 15 15 15 15 20 20 Final Carried 15 | 2 12 14 15 15 14 6 Class Distribution -------------------- 95% | Mutant 4% | Scavenger-Mutant Dominant Class ---------------- Mutant | -10/Materials Mutant | -10/Mines Mutant | -9/Materials Mutant | -9/Mines Mutant | -9/Exiles Mutant | -8/Mines Resources | -11 -10 -10 -9 -9 -9 -8 ----------- Run | Scr Mat Min Mat Min Exi Min Matter Collected 1605 | 200 224 155 811 15 . 200 Remotely . | . . . . . . . Salvage Created 1574 | . 556 147 837 . 16 18 Parts 117 | . 41 22 51 . . 3 Haulers Intercepted 8 | . 2 . 6 . . . Recyclers Shooed 3 | . 3 . . . . . Parts Field Recycled . | . . . . . . . Retrieved Matter . | . . . . . . . Parts Self-Destructed . | . . . . . . . Prevented . | . . . . . . . Kills | -11 -10 -10 -9 -9 -9 -8 ------- Run | Scr Mat Min Mat Min Exi Min Combat Hostiles Destroyed 41 | . 8 9 17 . 4 3 Guns 28 | . 8 4 15 . . 1 AOE 13 | . . 5 2 . 4 2 Classes Destroyed 10 | . 6 2 1 . 1 . Worker 7 | . 4 1 . . . 2 Builder 4 | . 3 1 . . . . Tunneler 2 | . . 2 . . . . Hauler 8 | . 2 . 6 . . . Recycler 1 | . 1 . . . . . Watcher 1 | . 1 . . . . . Swarmer 19 | . . 9 7 . . 3 Grunt 13 | . 8 . 5 . . . Sentry 5 | . . . 5 . . . Assembled 4 | . . . . . 4 . Best Kill Streak 5 | . 5 5 5 . 4 4 Combat Bots Only 5 | . 2 3 5 . 4 2 Max Kills in Single Turn 3 | . 2 2 1 . 3 3 Gunslinging 1 | . 1 . . . . . Exploded 3 | . . 2 1 . 3 2 Melee . | . . . . . . . Uniques/NPCs Destroyed . | . . . . . . . Combat | -11 -10 -10 -9 -9 -9 -8 -------- Run | Scr Mat Min Mat Min Exi Min Damage Taken 3063 | . 258 235 902 67 248 1353 Core 484 | . 41 39 93 . 28 283 Absorbed by Shields . | . . . . . . . Redirected to Shielding 10 | . . . 10 . . . Core Remaining (%) 84 | 100 . 68 . . . . Volleys Fired 206 | . 49 17 68 3 8 61 Largest 2 | . 2 2 2 2 2 2 Hottest 70 | . 60 70 46 43 43 46 Shots Fired 382 | . 97 30 132 6 10 107 Gun 358 | . 97 26 128 6 4 97 Cannon . | . . . . . . . Launcher 16 | . . 4 4 . 6 2 Special 8 | . . . . . . 8 Kinetic 297 | . 49 13 128 6 4 97 Thermal 69 | . 48 13 . . . 8 Explosive 16 | . . 4 4 . 6 2 Electromagnetic . | . . . . . . . Robot Hit Streak 33 | . 20 12 33 17 . 11 Robot Miss Streak 3 | . 3 3 3 1 . 3 Penetration Max . | . . . . . . . Secondary Targets 2 | . 2 . . . . . Max Gunslinging Chain 1 | . 1 . . . . . Shots Hit Robots 262 | . 72 11 99 5 . 75 Core Hits 103 | . 31 14 33 1 9 15 Critical Kills . | . . . . . . . Critical Parts Destroyed 1 | . 1 . . . . . Critical Strikes 3 | . 1 1 1 . . . Burn 1 | . . 1 . . . . Destroy 2 | . 1 . 1 . . . Melee Attacks 3 | . . . 3 . . . Impact 3 | . . . 3 . . . Slashing . | . . . . . . . Piercing . | . . . . . . . Sneak Attacks . | . . . . . . . Combat Hostiles . | . . . . . . . Follow-up Attacks . | . . . . . . . Damage Inflicted 4252 | . 913 517 1546 65 344 867 Guns 3014 | . 913 149 1347 65 . 540 Cannons . | . . . . . . . Explosions 1188 | . . 368 199 . 344 277 Melee . | . . . . . . . Ramming . | . . . . . . . Kinetic 2553 | . 515 86 1347 65 . 540 Thermal 511 | . 398 63 . . . 50 Explosive 1188 | . . 368 199 . 344 277 Electromagnetic . | . . . . . . . Impact . | . . . . . . . Slashing . | . . . . . . . Piercing . | . . . . . . . Highest Corruption 15 | . . . . . . 15 Average Corruption 9 | . . . . . . 9 Corruption Purged . | . . . . . . . Corruption Blocked . | . . . . . . . Effects 8 | . . . . . . 8 Message Errors 4 | . . . . . . 4 Energy Discharges 1 | . . . . . . 1 Data Loss (minor) 2 | . . . . . . 2 Weapon Failures 1 | . . . . . . 1 Overload Shots . | . . . . . . . Overflow Damage 127 | . . 11 43 . 25 48 Projectiles . | . . . . . . . Explosions 127 | . . 11 43 . 25 48 Melee . | . . . . . . . Knockbacks . | . . . . . . . Impact . | . . . . . . . Kinetic . | . . . . . . . Secondary . | . . . . . . . Self-Inflicted Damage 68 | . . 36 32 . . . Shots 3 | . . 2 1 . . . Rammed . | . . . . . . . Targets Rammed . | . . . . . . . Kicked . | . . . . . . . Crushed . | . . . . . . . Highest Temperature 90 | . 87 90 19 13 40 16 Average Temperature 23 | . 44 40 3 9 19 6 Received Heat Transfer 518 | . 147 . 264 27 80 . Siege Activations . | . . . . . . . Robots Corrupted . | . . . . . . . Combat Hostiles . | . . . . . . . Parts Fried . | . . . . . . . Impact Corruptions . | . . . . . . . Robots Melted . | . . . . . . . Combat Hostiles . | . . . . . . . Parts Melted . | . . . . . . . Heat Transferred 1188 | . 875 259 . . . 54 Parts Sabotaged . | . . . . . . . Parts Stolen . | . . . . . . . Parts Stripped . | . . . . . . . Power Chain Reactions . | . . . . . . . Missiles Intercepted . | . . . . . . . Alert | -11 -10 -10 -9 -9 -9 -8 ------- Run | Scr Mat Min Mat Min Exi Min Peak Influence 458 | . 317 222 458 140 . 74 Initial 140 | . . 22 37 140 . . Average 207 | . 137 136 302 138 . 20 Maximum Alert Level 2 | . 1 1 2 . . . Low Security (%) 47 | 100 72 56 19 100 . 100 Level 1 48 | . 27 43 72 . . . Level 2 3 | . . . 7 . . . Level 3 . | . . . . . . . Level 4 . | . . . . . . . Level 5 . | . . . . . . . High Security . | . . . . . . . Max Security . | . . . . . . . Squads Dispatched 9 | . 4 . 5 . . . Investigation 4 | . 2 . 2 . . . Extermination . | . . . . . . . Reinforcement 5 | . 2 . 3 . . . Assault . | . . . . . . . Garrison . | . . . . . . . Intercept . | . . . . . . . Searches Triggered . | . . . . . . . Construction Impeded . | . . . . . . . Haulers Reinforced . | . . . . . . . Active Scanning Responses . | . . . . . . . Cargo Convoy Interrupts . | . . . . . . . Stealth | -11 -10 -10 -9 -9 -9 -8 --------- Run | Scr Mat Min Mat Min Exi Min Distress Signals 3 | . . . 3 . . . Communications Jammed . | . . . . . . . Distress Signals . | . . . . . . . Times Spotted 71 | . 14 9 25 11 7 5 Peak Tracking Total 12 | . 3 3 4 12 9 4 Tactical Retreats 2 | . 1 . 1 . . . Traps | -11 -10 -10 -9 -9 -9 -8 ------- Run | Scr Mat Min Mat Min Exi Min Traps Triggered 1 | . . . 1 . . . Indirectly . | . . . . . . . Trap Hack Attempts . | . . . . . . . Triggered . | . . . . . . . Disarmed . | . . . . . . . Reprogrammed . | . . . . . . . Reused . | . . . . . . . Traps Extracted . | . . . . . . . Installed . | . . . . . . . Triggered . | . . . . . . . Machines | -11 -10 -10 -9 -9 -9 -8 ---------- Run | Scr Mat Min Mat Min Exi Min Machines Disabled 7 | . . . 1 . 6 . Max in Single Turn 2 | . . . 1 . 2 . Machines Sabotaged . | . . . . . . . Garrisons Compromised . | . . . . . . . Overloaded Fab Kills . | . . . . . . . Hacking | -11 -10 -10 -9 -9 -9 -8 --------- Run | Scr Mat Min Mat Min Exi Min Machines Accessed 18 | . 6 . 10 . 2 . Terminals 12 | . 4 . 8 . . . Fabricators . | . . . . . . . Repair Stations . | . . . . . . . Recycling Units 4 | . 2 . 2 . . . Scanalyzers . | . . . . . . . Garrison Access . | . . . . . . . Total Hacks 46 | . 13 . 31 . 2 . Successful 27 | . 8 . 17 . 2 . Failed 19 | . 5 . 14 . . . Catastrophic 4 | . 2 . 2 . . . Database Lockouts . | . . . . . . . Manual 34 | . 13 . 20 . 1 . Terminals 39 | . 11 . 28 . . . Fabricators . | . . . . . . . Repair Stations . | . . . . . . . Recycling Units 5 | . 2 . 3 . . . Scanalyzers . | . . . . . . . Garrison Access . | . . . . . . . Terminal Hacks 22 | . 6 . 14 . 2 . Record 2 | . . . 1 . 1 . Robot Analysis 8 | . 4 . 4 . . . Prototype ID Bank 5 | . 1 . 4 . . . Terminal Index 2 | . . . 2 . . . Hauler Manifests 2 | . . . 2 . . . Zone Layout 2 | . 1 . 1 . . . EX-Prototype ID Bank 1 | . . . . . 1 . Fabricator Hacks . | . . . . . . . Repair Station Hacks . | . . . . . . . Recycling Unit Hacks . | . . . . . . . Scanalyzer . | . . . . . . . Garrison Access Hacks . | . . . . . . . Unauthorized Hacks 5 | . 2 . 3 . . . Terminals 1 | . . . 1 . . . Botnet 1 | . . . 1 . . . Fabricators . | . . . . . . . Repair Stations . | . . . . . . . Recycling Units 4 | . 2 . 2 . . . Tunnel 4 | . 2 . 2 . . . Scanalyzers . | . . . . . . . Garrison Access . | . . . . . . . Data Cores Recovered . | . . . . . . . Used . | . . . . . . . Hacking Detections 9 | . 4 . 5 . . . Full Trace Events . | . . . . . . . Feedback Events . | . . . . . . . Feedback Blocked . | . . . . . . . Robot Schematics Acquired . | . . . . . . . Robots Built . | . . . . . . . Authchips . | . . . . . . . Time . | . . . . . . . Total Robot Build Rating . | . . . . . . . Part Schematics Acquired . | . . . . . . . Parts Built . | . . . . . . . Authchips . | . . . . . . . Time . | . . . . . . . Total Part Build Rating . | . . . . . . . Parts Repaired . | . . . . . . . Time . | . . . . . . . Parts Recycled . | . . . . . . . Recycled Matter . | . . . . . . . Retrieved Matter . | . . . . . . . Retrieved Components . | . . . . . . . Parts Scanalyzed . | . . . . . . . Part Schematics Acquired . | . . . . . . . Parts Damaged . | . . . . . . . Bothacking | -11 -10 -10 -9 -9 -9 -8 ------------ Run | Scr Mat Min Mat Min Exi Min Used RIF Installer . | . . . . . . . Robots Hacked . | . . . . . . . Non-combat . | . . . . . . . Combat . | . . . . . . . Robot Hacks Applied . | . . . . . . . Relay Couplers Released . | . . . . . . . Fabnet Peak Effective % . | . . . . . . . Robots Rewired . | . . . . . . . Allies Hacked . | . . . . . . . Hacks Repelled . | . . . . . . . Allies | -11 -10 -10 -9 -9 -9 -8 -------- Run | Scr Mat Min Mat Min Exi Min Total Allies 1 | . . . . 1 . . Largest Group 1 | . . . . 1 . . Highest-Rated Group 31 | . . . . 31 . . Highest-Rated Ally 31 | . . . . 31 . . Total Orders . | . . . . . . . Ally Attacks 3 | . . . . 3 . . Total Damage 42 | . . . . 42 . . Kills 2 | . . . . 2 . . Allies Corrupted . | . . . . . . . Allies Melted . | . . . . . . . Intel | -11 -10 -10 -9 -9 -9 -8 ------- Run | Scr Mat Min Mat Min Exi Min Robot Analysis Total 8 | . 4 . 4 . . . Derelict Logs Recovered 1 | . . 1 . . . . Drone Launches . | . . . . . . . Drone Recoveries . | . . . . . . . Exploration | -11 -10 -10 -9 -9 -9 -8 ------------- Run | Scr Mat Min Mat Min Exi Min Turns Passed 4133 | 4 816 664 1571 149 738 191 Spaces Moved 2182 | 1 386 380 877 78 448 12 Core . | . . . . . . . Treads 1757 | 1 386 380 452 78 448 12 Legs . | . . . . . . . Wheels 425 | . . . 425 . . . Hover . | . . . . . . . Flight . | . . . . . . . Fastest Speed 110 | 160 160 160 110 160 160 160 Average Speed 153 | 160 160 160 142 160 160 160 Slowest Speed 240 | 160 160 160 160 160 240 160 Overloaded Moves . | . . . . . . . Propulsion Burnouts . | . . . . . . . Robots Hopped . | . . . . . . . Cave-ins Triggered . | . . . . . . . Exploration Rate (%) 52 | 2 67 99 89 33 69 8 Regions Visited 6 Branch Regions 4 Pre-discovered Areas 5 | . 2 . 2 . 1 . Known Exits Taken 1 | . . . 1 . . . Unknown Exits Taken 5 | 1 1 1 . 1 1 . Scrap Searched 1 | . . 1 . . . . Spaces Dug 12 | . . . 12 . . . Terrain Destroyed 98 | . . 15 36 . 32 15 Melee 3 | . . . 3 . . . Projectile . | . . . . . . . AOE 95 | . . 15 33 . 32 15 Terrain Rammed . | . . . . . . . Walls Destroyed . | . . . . . . . Machines Disabled . | . . . . . . . Actions | -11 -10 -10 -9 -9 -9 -8 --------- Run | Scr Mat Min Mat Min Exi Min Total 2614 | 6 488 404 1074 98 459 85 Wait 105 | . 36 . 50 18 . 1 Move 2176 | . 385 379 876 77 447 12 Hop . | . . . . . . . Pick Up 32 | . 11 2 19 . . . Fast Attach 10 | . 2 . 8 . . . Attach 15 | 2 1 . 4 . 1 7 Detach . | . . . . . . . Swap 29 | . 1 5 18 . 2 3 Drop 38 | 4 3 1 28 . 1 1 Fire 206 | . 49 17 68 3 8 61 Melee 3 | . . . 3 . . . Ram . | . . . . . . . Kick . | . . . . . . . Crush . | . . . . . . . Escape Stasis . | . . . . . . . Rewire . | . . . . . . . Trap . | . . . . . . . Miscellaneous . | . . . . . . . Route ------- -11/Scrapyard -10/Materials (discovered 3 exits: *Mat x2 / [*Min]) -10/Mines (discovered 2 exits: *Mat x2) -9/Materials (discovered 3 exits: [*Mat x2] / *Min) -9/Mines -9/Exiles -8/Mines History --------- Turn | Location | Event 5 | -11/Scrapyard | Discovered new exit (range 0) 5 | -11/Scrapyard | Entered Materials 307 | -10/Materials | Build established: Mutant 328 | -10/Materials | Discovered new exit (range 16) 530 | -10/Materials | Discovered new exit (range 11) 685 | -10/Materials | Discovered new exit (range 6) 821 | -10/Materials | Entered Mines 839 | -10/Mines | Met a Derelict bent on vengeance 842 | -10/Mines | Learned location of 1 exit from Materials 1022 | -10/Mines | Found a hidden stash of uninstalled traps 1165 | -10/Mines | Discovered new exit (range 5) 1371 | -10/Mines | Discovered new exit (range 8) 1485 | -10/Mines | Entered Materials 1485 | -9/Materials | Evolved 2 slots: Propulsion x1, Utility x1 1486 | -9/Materials | Identified exit to Mines 1687 | -9/Materials | Met 8R-AWN 2381 | -9/Materials | Discovered new exit (range 6) 2869 | -9/Materials | Discovered new exit (range 12) 3056 | -9/Materials | Entered Mines 3057 | -9/Mines | Followed 8R-AWN into the Mines 3140 | -9/Mines | Received a Mining Laser from a helpful Derelict 3187 | -9/Mines | Assembled infested the area 3192 | -9/Mines | Received a Rocket Launcher from a helpful Derelict 3199 | -9/Mines | Discovered new exit (range 5) 3205 | -9/Mines | Entered Exiles 3244 | -9/Exiles | Welcomed by 8R-AWN 3273 | -9/Exiles | Met EX-HEX 3362 | -9/Exiles | Met EX-DEC 3389 | -9/Exiles | Learned location of Zion (-7) 3539 | -9/Exiles | Learned about 8R-AWN's background 3643 | -9/Exiles | Met EX-BIN 3662 | -9/Exiles | Aligned with FarCom system 3664 | -9/Exiles | Given EX-Vault access code 3701 | -9/Exiles | Opened EX-Vault 3734 | -9/Exiles | Warned to stay clear of 0b10 Research branches 3869 | -9/Exiles | Attacked by the Exiles 3921 | -9/Exiles | Discovered new exit (range 15) 3943 | -9/Exiles | Entered Mines 3966 | -8/Mines | ME-RLN came to Exiles' defense 4038 | -8/Mines | ME-RLN assimilated allied T-07 Excavator 4053 | -8/Mines | Core integrity fell below 50% 4053 | -8/Mines | System corruption reached 10% 4071 | -8/Mines | Lost 7 parts (3n2u2w) 4078 | -8/Mines | ME-RLN assimilated allied S-10 Pest 4079 | -8/Mines | ME-RLN assimilated allied U-05 Engineer 4091 | -8/Mines | ME-RLN assimilated allied T-07 Excavator 4113 | -8/Mines | Core integrity fell below 20% 4134 | -8/Mines | Destroyed by ME-RLN with Improved Arc Thrower Last Messages --------------- 04096_ Lgt. Assault Rifle destroyed. 04096_ U-05 Engineer lays Concrete. 04098_ U-05 Engineer builds a Wall. 04098_ S-10 Pest destroyed. 04100_ T-07 Excavator reactivates. 04100_ U-05 Engineer lays Concrete. 04102_ U-05 Engineer builds a Wall. 04105_ System corrupted: Component data lost. 04107_ U-05 Engineer builds a Wall. 04108_ U-05 Engineer lays Concrete. 04108_ System corrupted: Lgt. Assault Rifle jammed. 04109_ U-05 Engineer builds a Wall. 04114_ Destroyed Prototype Device. 04119_ K-01 Serf collects debris. 04120_ 2BBB7HOQ9J<=QG%DW&9X4BXXMJ:RZJ DRMKQ&>NY 04122_ K-01 Serf collects debris. 04123_ ME-RLN hacks K-01 Serf, rebooting. 04124_ Lgt. Assault Rifle destroyed. 04130_ K-01 Serf reactivates. 04131_ K-01 Serf collects debris. Map ----- +----------------------------------------------------+ | ???????????????????????????????????? | | ???????????????????????????????????? | | ???????????????????????????????????? | | ???????????????????????????????????? | | ???????????????????????????????????? | | ???????????????????????????????????? | | ???????????????????????????????????? | | ???????????????????????????????????? | | ???????????????????????????????????? | | ???????????????????????????????????? | | ???????????????????????????????????? | | ????????????????????????#######????? | | ???????????????????????#########???? | | ???????????????????????### ###???? | | ???????????????????????## ###??? | | ???????????????????????## ####?? | | ????????????? ?????????### ###?? | | ???????????? #??????### ##?? | | ????????????## ###?????### ##?? | | ????????????### # ??????## ##?? | | ?????????????## ## ??????## ##?? | | ????????????##### ????## ##?? | | ????????????#### ##### ###? | | ?????????###### ##### ###? | | ?????????## %[ ##? | | ????????? k r p @ ##? | | ?????????# ##### ###? | | ?????????## ??####### ###? | | ?????????## ??????????#### ###? | | ????????????????????????????## ### | | ?????????????????????????????? ## | | ?????????????????????????????? ## | | ?????????????????????????????? ## | | ?????????????????????????????? ### | | ?????????????????????????????? #### | | ?????????????????????????????? ####? | | ?????????????????????????????? ###?? | | ???????????????????????????????????? | | ???????????????????????????????????? | | ???????????????????????????????????? | | ???????????????????????????????????? | | ???????????????????????????????????? | | ???????????????????????????????????? | | ???????????????????????????????????? | | ???????????????????????????????????? | | ???????????????????????????????????? | | ???????????????????????????????????? | | ???????????????????????????????????? | | ???????????????????????????????????? | | ???????????????????????????????????? | +----------------------------------------------------+ Best States ------------- Heat Dissipation 35 Energy Generation 12 Energy Capacity 265 Matter Stores 300 Matter Capacity 300 Sight Range 16 Terrain Scan Density 10 Armor Coverage 225 Utility Shielding 66 Evasion (%) 40 Recoil Reduction 3 Authchip Count 3 Item Schematics ----------------- None Robot Schematics ------------------ None Fabricated ------------ Nothing Alien Tech Used ----------------- None Achievements -------------- None Challenges ------------ None Game ------ Seed FocalScatterSteel Manual? 0 Play Time 00:25:24 Cumulative 614.0 hours Start 2022.04.29 @ 16:55:03 End 2022.04.29 @ 17:19:50 Sessions 1 Manual Loads 0 Difficulty Rogue Special Mode None Game No. 578 Rogue 578 Adventurer 0 Explorer 0 Win Type - Total 22 Types 10/4/4/1/1/0/1/1/0 Lore% 88 Gallery% 95 Achievement% 77 Wizard Run 0 Options --------- ASCII 0 Keyboard 0 Movement Mouse Keybinds 1 Fullscreen 2 Font 24/Smallcaps Map View 76x50 Tactical HUD 1 Map Filters NONE Filters NONE Steam 1 RUN: 2bd8cce0-f700-4b12-9b61-086cf5d78beb